fUSD/lending_fUSD_20260425
["ID","MTS","AMOUNT","RATE_DAILY","PERIOD"]
[421108870,1777055431848,-250.0,8.242e-05,2]
[421108871,1777055431858,-300.0,8.256e-05,2]
[421108872,1777055431867,-2836.10062089,8.258e-05,2]
[421108873,1777055431879,-625.05307491,8.258e-05,2]
[421108874,1777055431890,-5859.642288,8.258e-05,2]
[421108875,1777055431902,-7563.6307162,8.258e-05,2]
[421108876,1777055431912,-2180.8311,8.258e-05,2]
[421108877,1777055431921,-150.0,8.263e-05,2]
[421108878,1777055431930,-250.0,8.273e-05,2]
[421108879,1777055431940,-210.1,8.316e-05,2]
[421108880,1777055431949,-150.0,8.356e-05,2]
[421108881,1777055431958,-161.18022559,8.356e-05,2]
[421108882,1777055431968,-373.9415824,8.357e-05,4]
[421108883,1777055431977,-500.0,8.357e-05,2]
[421108884,1777055431987,-578.97107337,8.357e-05,2]
[421108885,1777055431996,-500.0,8.357e-05,2]
[421108886,1777055432007,-500.0,8.357e-05,2]
[421108887,1777055432016,-500.0,8.357e-05,2]
[421108889,1777055432026,-500.0,8.357e-05,2]
[421108891,1777055432035,-500.0,8.357e-05,2]
[421108893,1777055432045,-500.0,8.357e-05,2]
[421108894,1777055432054,-500.0,8.357e-05,2]
[421108895,1777055432065,-500.0,8.357e-05,2]
[421108896,1777055432074,-500.0,8.357e-05,2]
[421108897,1777055432083,-500.0,8.357e-05,2]
[421108898,1777055432092,-500.0,8.357e-05,2]
[421108899,1777055432102,-500.0,8.357e-05,2]
[421108900,1777055432111,-500.0,8.357e-05,2]
[421108901,1777055432121,-500.0,8.357e-05,2]
[421108902,1777055432131,-500.0,8.357e-05,2]
[421108903,1777055432140,-500.0,8.357e-05,2]
[421108904,1777055432149,-500.0,8.357e-05,2]
[421108905,1777055432159,-500.0,8.357e-05,2]
[421108906,1777055432168,-500.0,8.357e-05,2]
[421108907,1777055432177,-500.0,8.357e-05,2]
[421108908,1777055432186,-500.0,8.357e-05,2]
[421108909,1777055432196,-500.0,8.357e-05,2]
[421108910,1777055432207,-500.0,8.357e-05,2]
[421108911,1777055432216,-500.0,8.357e-05,2]
[421108912,1777055432225,-207.05935876,8.357e-05,2]
[421108913,1777055432234,-500.0,8.357e-05,2]
[421108914,1777055432244,-500.0,8.357e-05,2]
[421108915,1777055432254,-500.0,8.357e-05,2]
[421108916,1777055432263,-500.0,8.357e-05,2]
[421108917,1777055432272,-500.0,8.357e-05,2]
[421108918,1777055432283,-500.0,8.357e-05,2]
[421108919,1777055432293,-500.0,8.357e-05,2]
[421108920,1777055432302,-500.0,8.357e-05,2]
[421108921,1777055432312,-500.0,8.357e-05,2]
[421108922,1777055432322,-218.22344533,8.357e-05,2]
[421108923,1777055432332,-500.0,8.357e-05,2]
[421108924,1777055432342,-500.0,8.357e-05,2]
[421108925,1777055432351,-500.0,8.357e-05,2]
[421108926,1777055432360,-500.0,8.357e-05,2]
[421108927,1777055432370,-500.0,8.357e-05,2]
[421108928,1777055432379,-500.0,8.357e-05,2]
[421108929,1777055432388,-500.0,8.357e-05,2]
[421108930,1777055432398,-500.0,8.357e-05,2]
[421108931,1777055432407,-500.0,8.357e-05,2]
[421108932,1777055432417,-500.0,8.357e-05,2]
[421108933,1777055432426,-500.0,8.357e-05,2]
[421108934,1777055432436,-500.0,8.357e-05,2]
[421108935,1777055432446,-500.0,8.357e-05,2]
[421108936,1777055432455,-500.0,8.357e-05,2]
[421108937,1777055432465,-500.0,8.357e-05,2]
[421108938,1777055432474,-500.0,8.357e-05,2]
[421108939,1777055432484,-500.0,8.357e-05,2]
[421108940,1777055432495,-500.0,8.357e-05,2]
[421108941,1777055432504,-3051.548,8.357e-05,2]
[421108942,1777055432514,-229.941,8.357e-05,2]
[421108943,1777055432523,-228.94,8.357e-05,2]
[421108944,1777055432533,-250.0,8.357e-05,2]
[421108945,1777055432542,-38540.4704237,8.358e-05,2]
[421108946,1777055432555,-84729.15548817,8.358e-05,2]
[421108947,1777055432567,-118733.63680057,8.358e-05,2]
[421108948,1777055432584,-1254.41808677,8.358e-05,2]
[421108949,1777055432595,-1351.14592439,8.358e-05,2]
[421108950,1777055432606,-522.00245098,8.358e-05,2]
[421108951,1777055432618,-685.28174376,8.358e-05,2]
[421108952,1777055432629,-1557.27262659,8.358e-05,2]
[421108953,1777055432647,-388.9964205,8.358e-05,2]
[421108954,1777055432659,-2408.9714815,8.358e-05,2]
[421108955,1777055432671,-370.97500365,8.358e-05,2]
[421108956,1777055432682,-1123.1044889,8.358e-05,2]
[421108957,1777055432694,-1255.39034168,8.358e-05,2]
[421108958,1777055432720,-4726.3500637,8.358e-05,2]
[421108959,1777055432731,-934.45208279,8.358e-05,2]
[421108961,1777055437862,-7231.10946283,8.358e-05,2]
[421108962,1777055437923,-730.938443,8.358e-05,2]
[421108963,1777055438042,-55240.47832789,8.358e-05,2]
[421108964,1777055438055,-2127.56901028,8.358e-05,2]
[421108965,1777055438111,-17344.45971582,8.358e-05,2]
[421108966,1777055438171,-667.96197469,8.358e-05,2]
[421108967,1777055438233,-3000.0,8.358e-05,2]
[421108968,1777055438245,-1678.19997191,8.358e-05,2]
[421108985,1777055440172,-2540.85,8.358e-05,2]
[421108986,1777055440184,-24319.30123661,8.358e-05,2]
[421108987,1777055440232,-9954.62348864,8.358e-05,2]
[421108988,1777055440243,-1583.41326918,8.358e-05,2]
[421108989,1777055440292,-507.18,8.358e-05,2]
[421108990,1777055440352,-18832.70322996,8.358e-05,2]
[421108991,1777055440413,-671.81221062,8.358e-05,2]
[421108992,1777055440425,-1298.21881177,8.358e-05,2]
[421109013,1777055442755,-680.76275655,8.358e-05,2]
[421109014,1777055442871,-5098.8617574,8.358e-05,2]
[421109015,1777055442883,-11387.92118104,8.358e-05,2]
[421109016,1777055442894,-1057.89460526,8.358e-05,2]
[421109017,1777055442906,-1143.02930338,8.358e-05,2]
[421109018,1777055442930,-1366.19956205,8.358e-05,2]
[421109019,1777055442942,-494.02769448,8.358e-05,2]
[421109020,1777055443047,-902.82601191,8.358e-05,2]
[421109021,1777055443162,-981.34260321,8.358e-05,2]
[421109029,1777055445893,-553.5,8.358e-05,2]
[421109030,1777055446177,-775.2,8.358e-05,2]
[421109031,1777055446293,-1362.91705858,8.358e-05,2]
[421109032,1777055446305,-451.26200772,8.358e-05,2]
[421109033,1777055446317,-1078.07,8.358e-05,2]
[421109034,1777055446355,-1123.71239335,8.358e-05,2]
[421109035,1777055446370,-9830.35087356,8.358e-05,2]
[421109036,1777055446382,-40421.83526464,8.358e-05,2]
[421109037,1777055446473,-838.46413676,8.358e-05,2]
[421109038,1777055446485,-804.94870996,8.358e-05,2]
[421109039,1777055446496,-431.885,8.358e-05,2]
[421109043,1777056240070,-473.2109,8.057e-05,2]
[421109044,1777056240095,-1200.0,8.156e-05,2]
[421109045,1777056240121,-300.0,8.156e-05,2]
[421109046,1777056240147,-1000.0,8.157e-05,2]
[421109047,1777056240172,-3795.09126293,8.157e-05,2]
[421109048,1777056240196,-150.0,8.157e-05,2]
[421109049,1777056240227,-27838.69783707,8.158e-05,2]
[421109051,1777056631929,-204.21,8.034e-05,2]
[421109052,1777056631939,-300.0,8.057e-05,2]
[421109053,1777056631949,-300.0,8.057e-05,2]
[421109054,1777056631958,-1200.0,8.057e-05,2]
[421109055,1777056631967,-228643.10798522,8.058e-05,2]
[421109056,1777056633507,-325.277498,8.058e-05,2]
[421109057,1777056633518,-329.83599996,8.058e-05,2]
[421109058,1777056633533,-463.60708434,8.058e-05,2]
[421109059,1777056638102,-539.28788154,8.058e-05,2]
[421109060,1777056638114,-1071.0,8.058e-05,2]
[421109061,1777056638157,-3562.06698633,8.058e-05,2]
[421109062,1777056638168,-1051.74850456,8.058e-05,2]
[421109063,1777056638179,-1678.19997191,8.058e-05,2]
[421109064,1777056638190,-1894.42310382,8.058e-05,2]
[421109065,1777056638201,-667.96197469,8.058e-05,2]
[421109066,1777056638212,-6000.0,8.058e-05,2]
[421109067,1777056638224,-9662.93463532,8.058e-05,2]
[421109068,1777056638235,-375.73185969,8.058e-05,2]
[421109069,1777056638246,-363.98,8.058e-05,2]
[421109070,1777056638258,-1900.0,8.058e-05,2]
[421109071,1777056638274,-7231.10946283,8.058e-05,2]
[421109072,1777056638287,-38405.57288514,8.058e-05,2]
[421109073,1777056638299,-102306.08860006,8.058e-05,2]
[421109074,1777056638310,-407206.99828881,8.058e-05,2]
[421109075,1777056638323,-347.25659751,8.058e-05,2]
[421109076,1777056638333,-1454.76,8.058e-05,2]
[421109077,1777056638373,-1922.34004422,8.058e-05,2]
[421109078,1777056638386,-469.73578931,8.058e-05,2]
[421109079,1777056638397,-974.33676083,8.058e-05,2]
[421109080,1777056638409,-815.91901641,8.058e-05,2]
[421109081,1777056638428,-17956.07462555,8.058e-05,2]
[421109083,1777056638484,-720.01455073,8.058e-05,2]
[421109085,1777056638496,-879.54028418,8.058e-05,2]
[421109105,1777056640434,-351.6510379,8.058e-05,2]
[421109106,1777056640546,-335.71108895,8.058e-05,2]
[421109107,1777056640559,-3300.0,8.058e-05,2]
[421109108,1777056640595,-18074.85965004,8.058e-05,2]
[421109109,1777056640607,-262.7300056,8.058e-05,2]
[421109110,1777056640619,-1706.36737641,8.058e-05,2]
[421109111,1777056640652,-2228.1457929,8.058e-05,2]
[421109118,1777056643092,-520.45652898,8.058e-05,2]
[421109119,1777056643147,-136944.72044513,8.058e-05,2]
[421109120,1777056643158,-60506.969764,8.058e-05,2]
[421109121,1777056643202,-827.75733248,8.058e-05,2]
[421109124,1777056644588,-79.00219544,8.058e-05,2]
[421109128,1777056646133,-42584.7058532,8.058e-05,2]
[421109129,1777056646169,-1180.95304529,8.058e-05,2]
[421109130,1777056646181,-3000.0,8.058e-05,2]
[421109131,1777056646192,-1434.61950838,8.058e-05,2]
[421109132,1777056646205,-4452.09999987,8.058e-05,2]
[421109133,1777056646225,-608.21731146,8.058e-05,2]
[421109134,1777056646281,-345.53625,8.058e-05,2]
[421109135,1777056646292,-406.02414376,8.058e-05,2]
[421109136,1777056646303,-9230.62057225,8.058e-05,2]
[421109137,1777056646342,-16350.68382427,8.058e-05,2]
[421109138,1777056646353,-13500.0,8.058e-05,2]
[421109139,1777056646366,-4437.36734964,8.058e-05,2]
[421109162,1777057543531,540.58924727,7.958e-05,21]
[421109163,1777057545070,540.58924727,7.958e-05,21]
[421109164,1777057545406,540.58924727,8.053e-05,21]
[421109165,1777057546432,540.58924727,8.054e-05,21]
[421109168,1777057832195,-300.0,7.956e-05,2]
[421109169,1777057832205,-485.81555945,7.956e-05,2]
[421109170,1777057832218,-714.18444055,7.956e-05,2]
[421109171,1777057832228,-300.0,7.956e-05,2]
[421109172,1777057832237,-150.0,7.957e-05,2]
[421109173,1777057832248,-300.0,7.957e-05,2]
[421109174,1777057832257,-1170.0,7.957e-05,2]
[421109175,1777057832267,-254.0,7.957e-05,2]
[421109176,1777057832276,-226.10030988,7.958e-05,2]
[421109177,1777057832290,-859.784997,7.958e-05,2]
[421109178,1777057832306,-3842.39487774,7.958e-05,2]
[421109179,1777057832371,-1605.99198305,7.958e-05,2]
[421109180,1777057832428,-1951.87210122,7.958e-05,2]
[421109181,1777057832439,-1271.14161176,7.958e-05,2]
[421109182,1777057832451,-984.85070173,7.958e-05,2]
[421109184,1777057838382,-11979.75265951,7.958e-05,2]
[421109185,1777057838447,-1318.75819923,7.958e-05,2]
[421109186,1777057838599,-4134.16891772,7.958e-05,2]
[421109187,1777057838613,-55084.18904246,7.958e-05,2]
[421109188,1777057838625,-14860.68728384,7.958e-05,2]
[421109189,1777057838671,-451.15504761,7.958e-05,2]
[421109190,1777057838764,-445.38649515,7.958e-05,2]
[421109191,1777057838822,-921.27653065,7.958e-05,2]
[421109227,1777057840739,-2269.44115513,7.958e-05,2]
[421109228,1777057840848,-355.60823773,7.958e-05,2]
[421109229,1777057841067,-3487.8893824,7.958e-05,2]
[421109248,1777057843410,-758.56,7.958e-05,2]
[421109257,1777057846724,-4739.2710069,7.958e-05,2]
[421109258,1777057846775,-3345.64301804,7.958e-05,2]
[421109261,1777057850092,270.29462363,8.762e-05,21]
[421109262,1777057861587,152.0,7.978e-05,7]
[421109263,1777057908318,2011.5091553,7e-05,3]
[421109264,1777057925187,153.0,7e-05,3]
[421109265,1777057985242,153.0,7e-05,3]
[421109266,1777058047574,153.0,7e-05,3]
[421109267,1777058106775,153.0,7e-05,3]
[421109268,1777058122162,270.29462362,8.044e-05,21]
[421109271,1777058163841,152.0,7.988e-05,7]
[421109272,1777058166471,153.0,7e-05,3]
[421109277,1777058225612,153.0,7e-05,3]
[421109278,1777058287053,153.0,7e-05,3]
[421109279,1777058347280,153.0,7e-05,3]
[421109283,1777058458089,152.0,7.968e-05,7]
[421109284,1777058525167,498.17071115,6.592e-05,2]
[421109285,1777058546526,152.0,7.915e-05,7]
[421109286,1777058547227,152.0,7.915e-05,7]
[421109297,1777059031506,-1159.94357071,7.848e-05,2]
[421109299,1777059031518,-2586.05206249,7.848e-05,2]
[421109301,1777059031531,-3384.49058667,7.848e-05,2]
[421109303,1777059031541,-74.72895888,7.848e-05,2]
[421109304,1777059031565,-177.27104112,7.848e-05,2]
[421109305,1777059031574,-1200.0,7.854e-05,2]
[421109306,1777059031584,-300.0,7.854e-05,2]
[421109307,1777059031593,-300.0,7.854e-05,2]
[421109308,1777059031602,-1170.0,7.855e-05,2]
[421109309,1777059031612,-150.0,7.856e-05,2]
[421109310,1777059031621,-340.70142151,7.857e-05,2]
[421109311,1777059031631,-500.0,7.857e-05,2]
[421109312,1777059031640,-500.0,7.857e-05,2]
[421109313,1777059031649,-612.26641892,7.857e-05,2]
[421109314,1777059031658,-649.20145134,7.857e-05,2]
[421109315,1777059031668,-500.0,7.857e-05,2]
[421109316,1777059031677,-500.0,7.857e-05,2]
[421109317,1777059031690,-339.43990144,7.857e-05,2]
[421109318,1777059031700,-500.0,7.857e-05,2]
[421109319,1777059031710,-500.0,7.857e-05,2]
[421109320,1777059031719,-500.0,7.857e-05,2]
[421109321,1777059031729,-500.0,7.857e-05,2]
[421109322,1777059031738,-500.0,7.857e-05,2]
[421109323,1777059031748,-500.0,7.857e-05,2]
[421109324,1777059031757,-500.0,7.857e-05,2]
[421109325,1777059031766,-500.0,7.857e-05,2]
[421109326,1777059031776,-500.0,7.857e-05,2]
[421109327,1777059031785,-500.0,7.857e-05,2]
[421109328,1777059031794,-500.0,7.857e-05,2]
[421109329,1777059031804,-500.0,7.857e-05,2]
[421109330,1777059031814,-500.0,7.857e-05,2]
[421109331,1777059031823,-500.0,7.857e-05,2]
[421109332,1777059031833,-500.0,7.857e-05,2]
[421109333,1777059031843,-500.0,7.857e-05,2]
[421109334,1777059031852,-500.0,7.857e-05,2]
[421109335,1777059031862,-500.0,7.857e-05,2]
[421109336,1777059031872,-500.0,7.857e-05,2]
[421109337,1777059031881,-500.0,7.857e-05,2]
[421109338,1777059031891,-500.0,7.857e-05,2]
[421109339,1777059031901,-500.0,7.857e-05,2]
[421109340,1777059031910,-500.0,7.857e-05,2]
[421109341,1777059031923,-500.0,7.857e-05,2]
[421109343,1777059031933,-500.0,7.857e-05,2]
[421109345,1777059031942,-500.0,7.857e-05,2]
[421109347,1777059031951,-500.0,7.857e-05,2]
[421109349,1777059031960,-500.0,7.857e-05,2]
[421109350,1777059031970,-500.0,7.857e-05,2]
[421109352,1777059031979,-500.0,7.857e-05,2]
[421109354,1777059031988,-500.0,7.857e-05,2]
[421109357,1777059031997,-500.0,7.857e-05,2]
[421109360,1777059032006,-500.0,7.857e-05,2]
[421109363,1777059032015,-500.0,7.857e-05,2]
[421109366,1777059032025,-500.0,7.857e-05,2]
[421109369,1777059032034,-500.0,7.857e-05,2]
[421109371,1777059032043,-500.0,7.857e-05,2]
[421109373,1777059032053,-500.0,7.857e-05,2]
[421109375,1777059032063,-500.0,7.857e-05,2]
[421109377,1777059032072,-500.0,7.857e-05,2]
[421109379,1777059032081,-500.0,7.857e-05,2]
[421109381,1777059032091,-500.0,7.857e-05,2]
[421109383,1777059032100,-415.35565427,7.857e-05,2]
[421109385,1777059032109,-500.0,7.857e-05,2]
[421109387,1777059032119,-500.0,7.857e-05,2]
[421109389,1777059032128,-500.0,7.857e-05,2]
[421109391,1777059032138,-500.0,7.857e-05,2]
[421109393,1777059032148,-500.0,7.857e-05,2]
[421109395,1777059032160,-500.0,7.857e-05,2]
[421109396,1777059032169,-500.0,7.857e-05,2]
[421109397,1777059032178,-500.0,7.857e-05,2]
[421109398,1777059032188,-500.0,7.857e-05,2]
[421109399,1777059032197,-500.0,7.857e-05,2]
[421109400,1777059032206,-500.0,7.857e-05,2]
[421109401,1777059032216,-500.0,7.857e-05,2]
[421109402,1777059032225,-500.0,7.857e-05,2]
[421109403,1777059032235,-500.0,7.857e-05,2]
[421109404,1777059032244,-500.0,7.857e-05,2]
[421109405,1777059032254,-500.0,7.857e-05,2]
[421109406,1777059032263,-500.0,7.857e-05,2]
[421109407,1777059032272,-500.0,7.857e-05,2]
[421109408,1777059032282,-500.0,7.857e-05,2]
[421109409,1777059032291,-500.0,7.857e-05,2]
[421109410,1777059032300,-500.0,7.857e-05,2]
[421109411,1777059032310,-500.0,7.857e-05,2]
[421109412,1777059032320,-500.0,7.857e-05,2]
[421109413,1777059032330,-400.0,7.857e-05,2]
[421109414,1777059032339,-500.0,7.857e-05,2]
[421109415,1777059032349,-500.0,7.857e-05,2]
[421109416,1777059032358,-500.0,7.857e-05,2]
[421109417,1777059032367,-500.0,7.857e-05,2]
[421109418,1777059032376,-500.0,7.857e-05,2]
[421109419,1777059032386,-500.0,7.857e-05,2]
[421109420,1777059032395,-500.0,7.857e-05,2]
[421109421,1777059032405,-500.0,7.857e-05,2]
[421109422,1777059032415,-350.0,7.857e-05,2]
[421109423,1777059032424,-500.0,7.857e-05,2]
[421109424,1777059032434,-500.0,7.857e-05,2]
[421109425,1777059032443,-500.0,7.857e-05,2]
[421109426,1777059032453,-500.0,7.857e-05,2]
[421109427,1777059032462,-500.0,7.857e-05,2]
[421109428,1777059032472,-500.0,7.857e-05,2]
[421109429,1777059032481,-500.0,7.857e-05,2]
[421109430,1777059032491,-500.0,7.857e-05,2]
[421109431,1777059032500,-500.0,7.857e-05,2]
[421109432,1777059032510,-500.0,7.857e-05,2]
[421109433,1777059032519,-500.0,7.857e-05,2]
[421109434,1777059032529,-326.09631732,7.857e-05,2]
[421109435,1777059032538,-226.72,7.857e-05,2]
[421109436,1777059032548,-34452.35065657,7.858e-05,2]
[421109437,1777059032562,-10690.02656161,7.858e-05,2]
[421109438,1777059032573,-512.90085166,7.858e-05,2]
[421109439,1777059032588,-341.348914,7.858e-05,2]
[421109440,1777059032599,-261611.89634723,7.858e-05,2]
[421109441,1777059032671,-1284.18884217,7.858e-05,2]
[421109442,1777059032683,-2434.79182097,7.858e-05,2]
[421109443,1777059032694,-2642.63241699,7.858e-05,2]
[421109444,1777059032713,-719.52552339,7.858e-05,2]
[421109445,1777059032725,-985.20374786,7.858e-05,2]
[421109456,1777059037620,-1000.18778537,7.858e-05,2]
[421109457,1777059037636,-865.69,7.858e-05,2]
[421109458,1777059037679,-19468.68671659,7.858e-05,2]
[421109459,1777059037696,-82425.11998565,7.858e-05,2]
[421109460,1777059037712,-787.08158621,7.858e-05,2]
[421109461,1777059037729,-1401.9124575,7.858e-05,2]
[421109462,1777059037745,-1057.47540344,7.858e-05,2]
[421109463,1777059037794,-55084.18904246,7.858e-05,2]
[421109464,1777059037810,-14860.68728384,7.858e-05,2]
[421109465,1777059037910,-11991.61838017,7.858e-05,2]
[421109466,1777059037927,-469.10245822,7.858e-05,2]
[421109472,1777059039910,-11974.0131181,7.858e-05,2]
[421109473,1777059039925,-500.0,7.958e-05,2]
[421109474,1777059039938,-151.0,8.052e-05,2]
[421109475,1777059039953,-17374.64,8.055e-05,2]
[421109476,1777059039966,-226.72,8.131e-05,2]
[421109477,1777059039979,-500.0,8.219e-05,2]
[421109478,1777059039993,-500.0,8.219e-05,2]
[421109479,1777059040006,-524.32046391,8.219e-05,2]
[421109480,1777059040020,-500.0,8.219e-05,2]
[421109481,1777059040034,-500.0,8.219e-05,2]
[421109482,1777059040047,-280.0,8.219e-05,2]
[421109483,1777059040062,-500.0,8.219e-05,2]
[421109484,1777059040076,-226.73,8.405e-05,2]
[421109485,1777059040088,-500.0,8.493e-05,2]
[421109486,1777059040102,-194.32,8.504e-05,2]
[421109487,1777059040115,-1483.72,8.504e-05,2]
[421109488,1777059040129,-9999.99,8.504e-05,2]
[421109489,1777059040142,-12970.62,8.504e-05,2]
[421109490,1777059040155,-999.99,8.504e-05,2]
[421109491,1777059040168,-150.99,8.504e-05,2]
[421109492,1777059040181,-28052.1,8.504e-05,2]
[421109493,1777059040196,-6767.58,8.504e-05,2]
[421109494,1777059040208,-14134.09,8.504e-05,2]
[421109495,1777059040222,-3074.68828284,8.532e-05,2]
[421109496,1777059040238,-1846.98171716,8.532e-05,2]
[421109497,1777059040252,-9999.99,8.532e-05,2]
[421109498,1777059040265,-299.99,8.532e-05,2]
[421109499,1777059040278,-578.20924308,8.532e-05,2]
[421109500,1777059040291,-695.39793187,8.532e-05,2]
[421109501,1777059040305,-715.97350308,8.532e-05,2]
[421109502,1777059040317,-200.0,8.532e-05,2]
[421109503,1777059040330,-174.61919141,8.532e-05,2]
[421109504,1777059040343,-229.92707573,8.532e-05,2]
[421109505,1777059040355,-201.932861,8.532e-05,2]
[421109506,1777059040368,-313.0,8.557e-05,2]
[421109507,1777059040382,-162.0,8.557e-05,2]
[421109508,1777059040394,-1891.0,8.563e-05,2]
[421109509,1777059040407,-1392.0,8.578e-05,2]
[421109510,1777059040419,-486.0,8.579e-05,2]
[421109511,1777059040431,-153.0,8.579e-05,2]
[421109512,1777059040446,-330.0,8.58e-05,2]
[421109513,1777059040459,-878.0,8.595e-05,2]
[421109514,1777059040471,-263.0,8.596e-05,2]
[421109515,1777059040484,-21686.6549,8.6e-05,2]
[421109516,1777059040496,-42.83157788,8.633e-05,2]
[421109517,1777059040529,-1323.12656741,8.633e-05,2]
[421109518,1777059040549,-1612.38566166,8.633e-05,2]
[421109519,1777059040562,-1680.0,8.639e-05,2]
[421109520,1777059040575,-420.0,8.639e-05,2]
[421109521,1777059040587,-255.0,8.641e-05,2]
[421109522,1777059040602,-300.0,8.642e-05,2]
[421109523,1777059040615,-300.0,8.642e-05,2]
[421109524,1777059040628,-445.558914,8.642e-05,2]
[421109525,1777059040641,-250.0,8.642e-05,2]
[421109526,1777059040654,-206.96224548,8.642e-05,2]
[421109527,1777059040667,-453.44,8.656e-05,2]
[421109528,1777059040679,-8713.97157938,8.68e-05,2]
[421109529,1777059040702,-804.76733576,8.68e-05,2]
[421109665,1777059045633,-1170.36,8.68e-05,2]
[421109666,1777059046017,-442.08150103,8.68e-05,2]
[421109667,1777059046029,-0.73100456,8.68e-05,2]
[421109668,1777059046038,-250.0,8.68e-05,2]
[421109669,1777059046048,-703.94014431,8.7e-05,2]
[421109670,1777059046059,-1480.91707797,8.7e-05,2]
[421109671,1777059046077,-15560.062563,8.7e-05,2]
[421109672,1777059046159,-4971.01074741,8.7e-05,2]
[421109688,1777060231849,-300.0,7.601e-05,2]
[421109689,1777060231858,-300.0,7.601e-05,2]
[421109690,1777060231868,-1200.0,7.601e-05,2]
[421109691,1777060231877,-1391.83667099,7.602e-05,2]
[421109692,1777060231953,-3903.70532901,7.602e-05,2]
[421109693,1777060231962,-441.583,7.602e-05,2]
[421109694,1777060231972,-150.0,7.718e-05,2]
[421109695,1777060231981,-150.0,7.718e-05,2]
[421109696,1777060231990,-150.0,7.718e-05,2]
[421109697,1777060231999,-150.0,7.718e-05,2]
[421109698,1777060232009,-150.0,7.718e-05,2]
[421109699,1777060232018,-150.0,7.718e-05,2]
[421109700,1777060232027,-150.94695297,7.718e-05,2]
[421109701,1777060232036,-150.0,7.718e-05,2]
[421109702,1777060232046,-150.0,7.718e-05,2]
[421109703,1777060232055,-150.0,7.718e-05,2]
[421109704,1777060232064,-150.0,7.718e-05,2]
[421109706,1777060232073,-150.0,7.738e-05,2]
[421109708,1777060232082,-150.0,7.755e-05,2]
[421109710,1777060232091,-228.94,7.756e-05,2]
[421109711,1777060232101,-88796.31088635,7.757e-05,2]
[421109712,1777060232113,-84765.84853899,7.757e-05,2]
[421109713,1777060232125,-118571.40600054,7.757e-05,2]
[421109714,1777060232136,-1254.41808677,7.757e-05,2]
[421109720,1777060237924,-304511.50818735,7.757e-05,2]
[421109721,1777060237934,-150.0,7.757e-05,2]
[421109722,1777060237944,-150.0,7.758e-05,2]
[421109723,1777060237955,-150.0,7.759e-05,2]
[421109724,1777060237965,-150.0,7.763e-05,2]
[421109725,1777060237975,-150.0,7.771e-05,2]
[421109726,1777060237985,-150.0,7.778e-05,2]
[421109727,1777060237995,-150.0,7.784e-05,2]
[421109728,1777060238006,-150.0,7.784e-05,2]
[421109729,1777060238015,-289.0,7.788e-05,2]
[421109730,1777060238025,-150.0,7.796e-05,2]
[421109731,1777060238035,-150.0,7.798e-05,2]
[421109732,1777060238044,-150.0,7.799e-05,2]
[421109733,1777060238054,-150.0,7.808e-05,2]
[421109734,1777060238064,-150.0,7.818e-05,2]
[421109735,1777060238076,-150.0,7.825e-05,2]
[421109736,1777060238085,-150.0,7.835e-05,2]
[421109737,1777060238095,-150.0,7.837e-05,2]
[421109738,1777060238105,-150.0,7.84e-05,2]
[421109739,1777060238114,-150.0,7.85e-05,2]
[421109740,1777060238123,-150.0,7.85e-05,2]
[421109741,1777060238133,-150.0,7.853e-05,2]
[421109742,1777060238143,-150.0,7.857e-05,2]
[421109743,1777060238152,-150.0,7.874e-05,2]
[421109744,1777060238162,-150.0,7.877e-05,2]
[421109745,1777060238171,-150.0,7.879e-05,2]
[421109746,1777060238181,-150.0,7.881e-05,2]
[421109747,1777060238191,-150.0,7.889e-05,2]
[421109748,1777060238200,-150.0,7.897e-05,2]
[421109749,1777060238210,-150.0,7.898e-05,2]
[421109750,1777060238220,-150.0,7.913e-05,2]
[421109751,1777060238230,-150.0,7.916e-05,2]
[421109752,1777060238240,-150.0,7.916e-05,2]
[421109754,1777060238249,-150.0,7.917e-05,2]
[421109756,1777060238258,-150.0,7.922e-05,2]
[421109757,1777060238268,-150.0,7.932e-05,2]
[421109758,1777060238277,-150.0,7.932e-05,2]
[421109759,1777060238287,-150.0,7.937e-05,2]
[421109760,1777060238296,-150.0,7.943e-05,2]
[421109761,1777060238305,-150.0,7.952e-05,2]
[421109762,1777060238314,-150.0,7.957e-05,2]
[421109763,1777060238323,-150.0,7.963e-05,2]
[421109764,1777060238333,-150.0,7.977e-05,2]
[421109765,1777060238342,-150.0,7.982e-05,2]
[421109766,1777060238351,-150.0,7.982e-05,2]